fUSD/lending_fUSD_20260702
["ID","MTS","AMOUNT","RATE_DAILY","PERIOD"]
[426843666,1782936673000,-3838.195739,0.00027397,2]
[426843660,1782936673000,-1496.229103,0.00027397,2]
[426843658,1782936673000,-1538.519192,0.00027397,2]
[426843659,1782936673000,-3838.195739,0.00027397,2]
[426843654,1782936673000,-1538.519192,0.00027397,2]
[426843663,1782936673000,-1496.229103,0.00027397,2]
[426843669,1782936673000,-3838.195739,0.00027397,2]
[426843679,1782936679000,306000.0,0.000301,120]
[426843684,1782936967000,500.0,0.00030136,120]
[426843683,1782936967000,500.0,0.00030136,120]
[426843685,1782936968000,481.2837799,0.00030136,120]
[426843688,1782937203000,248.478,0.00027397,120]
[426843690,1782937594000,-5444.6832792,0.00016761,2]
[426843691,1782937740000,2000.0,0.00030135,120]
[426843714,1782937837000,-1451.5520208,0.00016761,2]
[426843715,1782937837000,-87.65135677,0.00016761,2]
[426843717,1782937838000,-1594.74201902,0.00016761,2]
[426843716,1782937838000,-2412.34864323,0.00016761,2]
[426843719,1782937838000,-1576.34648031,0.00016761,2]
[426843718,1782937838000,-280.35220067,0.00016761,2]
[426843720,1782937838000,-150.0,0.00016786,2]
[426843721,1782937838000,-500.0,0.0001686,2]
[426843722,1782937838000,-322.005,0.00017644,3]
[426843729,1782937838000,-232.23055201,0.00021499,2]
[426843725,1782937838000,-500.0,0.00021499,2]
[426843724,1782937838000,-500.0,0.00021499,2]
[426843727,1782937838000,-500.0,0.00021499,2]
[426843723,1782937838000,-183.74377907,0.000211,2]
[426843730,1782937838000,-500.0,0.00021499,2]
[426843732,1782937838000,-201.92795247,0.00021499,2]
[426843733,1782937838000,-3.09004202,0.00021499,2]
[426843784,1782937841000,-299.52861006,0.00021499,2]
[426843776,1782937841000,-496.90995798,0.00021499,2]
[426843783,1782937841000,-371.90315765,0.00021499,2]
[426843778,1782937841000,-500.0,0.00021499,2]
[426843780,1782937841000,-128.09684235,0.00021499,2]
[426843785,1782937841000,-200.47138994,0.00021499,2]
[426843787,1782937841000,-784.70457283,0.000215,2]
[426843788,1782937841000,-117.48362408,0.000215,2]
[426843786,1782937841000,-418.30453006,0.000215,2]
[426843795,1782937842000,-189.77159535,0.000217,2]
[426843793,1782937842000,-522.0111094,0.000215,2]
[426843794,1782937842000,-192.08612594,0.000215,2]
[426843792,1782937842000,-10182.48274164,0.000215,2]
[426843798,1782937845000,-3798.61306739,0.000217,2]
[426843797,1782937845000,-1013.23750754,0.000217,2]
[426843802,1782938188000,2074.0,0.00030137,120]
[426843804,1782938806000,25518.41242595,0.0003013,120]
[426843813,1782938941000,2000.0,0.00030136,120]
[426843825,1782939031000,-1850.97235565,0.00016661,2]
[426843819,1782939031000,-1557.63357986,0.0001421,7]
[426843820,1782939031000,-764.88233487,0.0001421,7]
[426843826,1782939031000,-342.86699056,0.00016661,2]
[426843824,1782939031000,-2510.3979,0.00016661,2]
[426843822,1782939031000,-294.28860896,0.00014989,2]
[426843823,1782939031000,-250.0,0.00015631,2]
[426843827,1782939031000,-306.16065379,0.00016661,2]
[426843821,1782939031000,-150.0,0.00014351,2]
[426843829,1782939031000,-309.17280576,0.0001676,2]
[426843835,1782939031000,-500.0,0.0001676,2]
[426843837,1782939031000,-327.49852754,0.0001676,2]
[426843836,1782939031000,-257.74992585,0.0001676,2]
[426843832,1782939031000,-402.85876635,0.0001676,2]
[426843828,1782939031000,-190.82719424,0.0001676,2]
[426843833,1782939031000,-404.13401414,0.0001676,2]
[426843831,1782939031000,-411.32532805,0.0001676,2]
[426843830,1782939031000,-254.08113542,0.0001676,2]
[426843834,1782939031000,-95.86598586,0.0001676,2]
[426843839,1782939032000,-165.39849119,0.0001676,2]
[426843838,1782939032000,-291.38174096,0.0001676,2]
[426843840,1782939032000,-241.60150881,0.0001676,2]
[426843848,1782939038000,-258.39849119,0.0001676,2]
[426843853,1782939038000,-500.0,0.0001686,2]
[426843849,1782939038000,-423.84150881,0.0001676,2]
[426843851,1782939038000,-500.0,0.0001676,2]
[426843852,1782939038000,-150.52625108,0.0001676,2]
[426843850,1782939038000,-76.15849119,0.0001676,2]
[426843855,1782939038000,-417.60888752,0.000214,2]
[426843856,1782939038000,-202.55351378,0.000214,2]
[426843859,1782939038000,-1381.26239188,0.000214,2]
[426843858,1782939038000,-3987.92351914,0.000214,2]
[426843854,1782939038000,-1948.78893342,0.00017,2]
[426843857,1782939038000,-427.03774312,0.000214,2]
[426843869,1782939039000,-3560.54678543,0.00021596,2]
[426843864,1782939039000,-316.59209209,0.000214,2]
[426843863,1782939039000,-871.6875,0.000214,2]
[426843865,1782939039000,-2733.04829897,0.000214,2]
[426843871,1782939039000,-655.28295906,0.00021596,2]
[426843866,1782939039000,-192.08612595,0.000214,2]
[426843868,1782939039000,-160.0,0.00021596,2]
[426843870,1782939039000,-398.45108328,0.00021596,2]
[426843872,1782939039000,-1161.66341644,0.00021596,2]
[426843867,1782939039000,-721.80546173,0.000214,2]
[426843873,1782939040000,-3857.15505304,0.00021596,2]
[426843887,1782939043000,-32.74530326,0.000216,2]
[426843885,1782939043000,-366.89070275,0.00021596,2]
[426843888,1782939043000,-7613.85714924,0.000216,2]
[426843889,1782939043000,-560.0441153,0.000216,2]
[426843886,1782939043000,-417.60888752,0.000216,2]
[426843904,1782939046000,-151.0,0.000217,2]
[426843913,1782939046000,-1231.0,0.00022279,2]
[426843911,1782939046000,-9920.10505898,0.000221,2]
[426843910,1782939046000,-417.60888752,0.000221,2]
[426843909,1782939046000,-5000.0,0.00021956,2]
[426843905,1782939046000,-417.60888752,0.000219,2]
[426843907,1782939046000,-721.80546173,0.000219,2]
[426843908,1782939046000,-404.0,0.000219,7]
[426843899,1782939046000,-6120.50834284,0.000216,2]
[426843903,1782939046000,-886.0,0.000217,2]
[426843902,1782939046000,-895.0,0.000217,2]
[426843901,1782939046000,-906.0,0.000217,2]
[426843900,1782939046000,-3387.24,0.000216,2]
[426843898,1782939046000,-394.02165716,0.000216,2]
[426843912,1782939046000,-721.80546173,0.000221,2]
[426843895,1782939046000,-2500.0,0.00016661,2]
[426843896,1782939046000,-1713.45849118,0.000216,2]
[426843906,1782939046000,-9920.10505898,0.000219,2]
[426843914,1782939046000,-1362.0,0.00022279,2]
[426843897,1782939046000,-721.80546173,0.000216,2]
[426843916,1782939046000,-278.0,0.00022279,2]
[426843917,1782939046000,-200.0,0.00022279,2]
[426843931,1782939046000,-500.0,0.00022562,2]
[426843930,1782939046000,-385.98582002,0.00022562,2]
[426843934,1782939046000,-8540.14770997,0.00023,2]
[426843933,1782939046000,-9461.05229003,0.000228,2]
[426843932,1782939046000,-459.05276895,0.000228,2]
[426843929,1782939046000,-500.0,0.00022562,2]
[426843927,1782939046000,-6244.64196496,0.000225,2]
[426843925,1782939046000,-216.66345934,0.00022482,2]
[426843928,1782939046000,-500.0,0.00022562,2]
[426843924,1782939046000,-721.80546173,0.000223,2]
[426843923,1782939046000,-9920.10505898,0.000223,2]
[426843920,1782939046000,-150.0,0.00022279,2]
[426843918,1782939046000,-935.0,0.00022279,2]
[426843919,1782939046000,-150.0,0.00022279,2]
[426843915,1782939046000,-150.0,0.00022279,2]
[426843922,1782939046000,-417.60888752,0.000223,2]
[426843926,1782939046000,-3675.46309402,0.000225,2]
[426843921,1782939046000,-6085.0,0.00022279,2]
[426844015,1782940231000,-169.58,0.00015903,2]
[426844009,1782940231000,-250.0,0.00014921,2]
[426844008,1782940231000,-215.1788454,0.00014494,7]
[426844011,1782940231000,-922.32,0.00015528,2]
[426844014,1782940231000,-200.0,0.0001589,2]
[426844017,1782940231000,-250.0,0.00015944,2]
[426844012,1782940231000,-174.52,0.00015814,2]
[426844016,1782940231000,-922.32,0.00015916,2]
[426844010,1782940231000,-322.7682681,0.00015347,7]
[426844018,1782940231000,-172.14395915,0.00015944,2]
[426844019,1782940231000,-189.65004085,0.00015944,2]
[426844022,1782940231000,-539.41,0.00015971,2]
[426844021,1782940231000,-152.8,0.00015962,2]
[426844023,1782940231000,-952.12069535,0.00015997,2]
[426844020,1782940231000,-3581.9,0.00015955,2]
[426844024,1782940231000,-393.653476,0.00015997,2]
[426844026,1782940231000,-922.32,0.00016304,2]
[426844025,1782940231000,-694.22582865,0.00015997,2]
[426844013,1782940231000,-155.22,0.00015863,2]
[426844027,1782940232000,-150.0,0.00016319,2]
[426844029,1782940232000,-411.42,0.00016461,2]
[426844028,1782940232000,-49.22457958,0.00016461,2]
[426844034,1782940237000,-166.66,0.00016503,2]
[426844033,1782940237000,-793.73162042,0.00016461,2]
[426844035,1782940237000,-200.8426788,0.0001656,2]
[426844044,1782940240000,-299.1573212,0.0001656,2]
[426844045,1782940240000,-129.75755864,0.0001656,2]
[426844080,1782940242000,-495.24924169,0.0001656,2]
[426844081,1782940242000,-460.45364631,0.0001656,2]
[426844082,1782940242000,-39.54635369,0.0001656,2]
[426844084,1782940242000,-500.0,0.0001656,2]
[426844083,1782940242000,-500.0,0.0001656,2]
[426844085,1782940242000,-491.23544631,0.0001656,2]
[426844106,1782940246000,-33347.6671,0.00016561,2]
[426844107,1782940246000,-480.0329,0.00016561,2]
[426844105,1782940246000,-500.0,0.0001656,2]
[426844102,1782940246000,-500.0,0.0001656,2]
[426844099,1782940246000,-500.0,0.0001656,2]
[426844098,1782940246000,-500.0,0.0001656,2]
[426844104,1782940246000,-500.0,0.0001656,2]
[426844101,1782940246000,-336.35303347,0.0001656,2]
[426844097,1782940246000,-500.0,0.0001656,2]
[426844100,1782940246000,-500.0,0.0001656,2]
[426844096,1782940246000,-500.0,0.0001656,2]
[426844095,1782940246000,-500.0,0.0001656,2]
[426844094,1782940246000,-500.0,0.0001656,2]
[426844091,1782940246000,-500.0,0.0001656,2]
[426844092,1782940246000,-500.0,0.0001656,2]
[426844093,1782940246000,-500.0,0.0001656,2]
[426844089,1782940246000,-8.76455369,0.0001656,2]
[426844090,1782940246000,-500.0,0.0001656,2]
[426844103,1782940246000,-500.0,0.0001656,2]
[426844115,1782940246000,-319.7461625,0.00016658,2]
[426844110,1782940246000,-3577.95554394,0.00016592,2]
[426844116,1782940246000,-500.0,0.00016658,2]
[426844113,1782940246000,-229.24896928,0.00016658,2]
[426844130,1782940246000,-500.0,0.0001676,2]
[426844129,1782940246000,-500.0,0.0001676,2]
[426844128,1782940246000,-500.5703195,0.0001676,2]
[426844125,1782940246000,-500.0,0.0001676,2]
[426844127,1782940246000,-500.0,0.0001676,2]
[426844126,1782940246000,-217.10979211,0.0001676,2]
[426844123,1782940246000,-922.32,0.00016692,2]
[426844119,1782940246000,-500.0,0.0001666,2]
[426844122,1782940246000,-500.0,0.0001666,2]
[426844121,1782940246000,-500.0,0.0001666,2]
[426844114,1782940246000,-500.0,0.00016658,2]
[426844124,1782940246000,-500.0,0.0001676,2]
[426844109,1782940246000,-2000.0,0.00016561,2]
[426844112,1782940246000,-282.00113645,0.00016658,2]
[426844108,1782940246000,-2500.0,0.00016561,2]
[426844118,1782940246000,-195.16132355,0.00016658,2]
[426844117,1782940246000,-492.73690344,0.00016658,2]
[426844120,1782940246000,-500.0,0.0001666,2]
[426844111,1782940246000,-725.85907425,0.00016592,2]
[426844135,1782940247000,-684.34,0.00017572,2]
[426844131,1782940247000,-1001.96444778,0.0001676,2]
[426844132,1782940247000,-3130.37633621,0.00016791,2]
[426844136,1782940247000,-322.005,0.00017644,3]
[426844134,1782940247000,-922.32,0.0001708,2]
[426844137,1782940247000,-193.02,0.00017645,2]
[426844142,1782940247000,-7884.50351693,0.00018453,2]
[426844133,1782940247000,-500.0,0.00017034,2]
[426844143,1782940247000,-169.58,0.00018553,2]
[426844141,1782940247000,-8955.35,0.00018356,2]
[426844140,1782940247000,-231.0,0.00017947,2]
[426844139,1782940247000,-3577.95554388,0.00017781,2]
[426844144,1782940247000,-725.85907418,0.00018779,2]
[426844146,1782940247000,-2686.71513649,0.00018971,2]
[426844145,1782940247000,-684.34,0.00018941,2]
[426844138,1782940247000,-333.31,0.00017645,2]
[426844210,1782940481000,820.73,0.00028498,120]
[426844215,1782941126000,169.58,0.00026319,120]
[426844217,1782941341000,2000.0,0.00028497,120]
[426844220,1782941352000,-375.92,0.00015678,2]
[426844221,1782941352000,-223.33205871,0.00016258,2]
[426844223,1782941352000,-699.26315388,0.0001656,2]
[426844225,1782941352000,-253.47768834,0.0001666,2]
[426844222,1782941352000,-375.92,0.00016503,2]
[426844224,1782941352000,-2000.0,0.00016561,2]
[426844228,1782941352000,-160.47427849,0.0001713,2]
[426844226,1782941352000,-468.0,0.00016958,2]
[426844229,1782941352000,-197.40079551,0.0001713,2]
[426844230,1782941352000,-96.45812107,0.0001713,2]
[426844227,1782941352000,-550.0,0.00017129,2]
[426844237,1782941431000,-403.54187893,0.0001713,2]
[426844236,1782941431000,-186.0,0.0001713,2]
[426844251,1782941432000,-151.0,0.0001713,2]
[426844247,1782941432000,-911.0,0.0001713,2]
[426844245,1782941432000,-500.0,0.0001713,2]
[426844246,1782941432000,-382.76009454,0.0001713,2]
[426844243,1782941432000,-500.0,0.0001713,2]
[426844240,1782941432000,-223.82231375,0.0001713,2]
[426844241,1782941432000,-500.0,0.0001713,2]
[426844242,1782941432000,-500.0,0.0001713,2]
[426844238,1782941432000,-486.61292648,0.0001713,2]
[426844248,1782941432000,-915.0,0.0001713,2]
[426844244,1782941432000,-592.92811483,0.0001713,2]
[426844250,1782941432000,-153.0,0.0001713,2]
[426844239,1782941432000,-194.91583241,0.0001713,2]
[426844252,1782941432000,-151.0,0.0001713,2]
[426844262,1782941432000,-822.17175243,0.00017131,2]
[426844264,1782941432000,-607.56498033,0.00017131,2]
[426844263,1782941432000,-1727.7793383,0.00017131,2]
[426844261,1782941432000,-257.37553798,0.00017131,2]
[426844260,1782941432000,-986.52223431,0.00017131,2]
[426844259,1782941432000,-773.06609075,0.00017131,2]
[426844249,1782941432000,-889.0,0.0001713,2]
[426844258,1782941432000,-5172.03277666,0.00017131,2]
[426844255,1782941432000,-900.0,0.0001713,2]
[426844253,1782941432000,-892.0,0.0001713,2]
[426844256,1782941432000,-7087.7018039,0.00017131,2]
[426844254,1782941432000,-917.0,0.0001713,2]
[426844257,1782941432000,-152.5186155,0.00017131,2]
[426844286,1782941438000,-4270.17385727,0.00017131,2]
[426844284,1782941438000,-143.85,0.0001713,2]
[426844283,1782941438000,-762.15,0.0001713,2]
[426844285,1782941438000,-2908.73,0.00017131,2]
[426844298,1782941440000,-15325.00358316,0.00017131,2]
[426844297,1782941440000,-545.10455253,0.00017131,2]
[426844296,1782941440000,-484.8,0.00017131,2]
[426844300,1782941441000,-300.79994,0.00017131,2]
[426844301,1782941441000,-2547.30371518,0.00017131,2]
[426844299,1782941441000,-905.0,0.0001713,2]
[426844331,1782941443000,-152.389745,0.000172,2]
[426844335,1782941443000,-237.27,0.00017387,2]
[426844336,1782941443000,-550.92,0.00017428,2]
[426844337,1782941443000,-764.029805,0.00017545,2]
[426844338,1782941443000,-764.029805,0.00017545,2]
[426844340,1782941443000,-764.029805,0.00017545,2]
[426844339,1782941443000,-764.029805,0.00017545,2]
[426844341,1782941443000,-169.58,0.00017546,2]
[426844342,1782941443000,-320.365,0.00017554,3]
[426844344,1782941443000,-150.0,0.00017645,2]
[426844345,1782941443000,-237.27,0.00017821,2]
[426844356,1782941443000,-204.2,0.00018548,2]
[426844346,1782941443000,-2593.6929215,0.00017847,2]
[426844351,1782941443000,-9999.99,0.00018533,2]
[426844348,1782941443000,-1020.0,0.00018107,2]
[426844349,1782941443000,-192.87,0.00018129,2]
[426844350,1782941443000,-237.27,0.00018256,2]
[426844353,1782941443000,-204.2,0.00018548,2]
[426844355,1782941443000,-204.2,0.00018548,2]
[426844352,1782941443000,-29999.99,0.00018533,2]
[426844354,1782941443000,-204.2,0.00018548,2]
[426844333,1782941443000,-375.92,0.00017328,2]
[426844347,1782941443000,-246.96,0.00017947,2]
[426844334,1782941443000,-500.0,0.0001737,2]
[426844321,1782941443000,-411.4,0.000172,2]
[426844330,1782941443000,-764.029805,0.000172,2]
[426844308,1782941443000,-66419.251253,0.00017131,2]
[426844309,1782941443000,-685.3375485,0.00017131,2]
[426844310,1782941443000,-90184.4266623,0.00017131,2]
[426844311,1782941443000,-2010.63,0.000172,2]
[426844313,1782941443000,-2095.48,0.000172,2]
[426844312,1782941443000,-1298.65,0.000172,2]
[426844315,1782941443000,-1313.91,0.000172,2]
[426844314,1782941443000,-383.61,0.000172,2]
[426844316,1782941443000,-1470.34,0.000172,2]
[426844317,1782941443000,-2326.67,0.000172,2]
[426844332,1782941443000,-151.0,0.000172,2]
[426844319,1782941443000,-1818.58,0.000172,2]
[426844358,1782941443000,-204.2,0.00018548,2]
[426844320,1782941443000,-1962.0,0.000172,2]
[426844322,1782941443000,-2536.54,0.000172,2]
[426844323,1782941443000,-935.93,0.000172,2]
[426844325,1782941443000,-546.01,0.000172,2]
[426844324,1782941443000,-2895.12,0.000172,2]
[426844326,1782941443000,-151.0,0.000172,2]
[426844329,1782941443000,-764.029805,0.000172,2]
[426844327,1782941443000,-764.029805,0.000172,2]
[426844328,1782941443000,-764.029805,0.000172,2]
[426844318,1782941443000,-1707.29,0.000172,2]
[426844359,1782941443000,-204.2,0.00018548,2]
[426844343,1782941443000,-150.0,0.00017645,2]
[426844357,1782941443000,-204.2,0.00018548,2]
[426844388,1782941443000,-500.0,0.00019335,2]
[426844389,1782941443000,-500.0,0.00019335,2]
[426844390,1782941443000,-500.0,0.00019335,2]
[426844392,1782941443000,-500.0,0.00019335,2]
[426844391,1782941443000,-500.0,0.00019335,2]
[426844394,1782941443000,-154.511125,0.00019336,2]
[426844393,1782941443000,-268229.4843,0.00019336,2]
[426844397,1782941443000,-764.029805,0.00019336,2]
[426844398,1782941443000,-764.029805,0.00019336,2]
[426844399,1782941443000,-4899.41,0.00019339,2]
[426844395,1782941443000,-764.029805,0.00019336,2]
[426844402,1782941443000,-231.76031575,0.000194,2]
[426844403,1782941443000,-192.87,0.00019625,2]
[426844400,1782941443000,-2513.05,0.00019339,2]
[426844401,1782941443000,-4357.83,0.00019339,2]
[426844405,1782941443000,-500.0,0.00019753,2]
[426844404,1782941443000,-208.56,0.00019696,2]
[426844408,1782941443000,-190.98242431,0.0002,2]
[426844407,1782941443000,-289.661446,0.0002,2]
[426844410,1782941443000,-190.98242431,0.0002,2]
[426844409,1782941443000,-190.98242431,0.0002,2]
[426844406,1782941443000,-2593.69292145,0.00019947,2]
[426844360,1782941443000,-204.2,0.00018548,2]
[426844387,1782941443000,-500.0,0.00019335,2]
[426844386,1782941443000,-500.0,0.00019335,2]
[426844396,1782941443000,-764.029805,0.00019336,2]
[426844384,1782941443000,-764.029805,0.00019325,2]
[426844361,1782941443000,-204.2,0.00018548,2]
[426844382,1782941443000,-764.029805,0.00019325,2]
[426844362,1782941443000,-500.0,0.00018548,2]
[426844363,1782941443000,-237.27,0.00018691,2]
[426844365,1782941443000,-28720.21,0.0001872,2]
[426844364,1782941443000,-2185.12,0.0001872,2]
[426844366,1782941443000,-2593.69292145,0.00018897,2]
[426844368,1782941443000,-820.73,0.00018998,2]
[426844370,1782941443000,-237.27,0.00019125,2]
[426844371,1782941443000,-2000.0,0.00019136,2]
[426844373,1782941443000,-5255.9014,0.00019236,2]
[426844369,1782941443000,-886.0,0.00018999,2]
[426844367,1782941443000,-152.0,0.00018971,2]
[426844376,1782941443000,-764.029805,0.00019236,2]
[426844375,1782941443000,-764.029805,0.00019236,2]
[426844372,1782941443000,-166.66,0.00019226,2]
[426844377,1782941443000,-764.029805,0.00019236,2]
[426844380,1782941443000,-8836.19198964,0.00019236,2]
[426844381,1782941443000,-659.31142825,0.00019236,2]
[426844378,1782941443000,-764.029805,0.00019236,2]
[426844374,1782941443000,-151.0,0.00019236,2]
[426844383,1782941443000,-764.029805,0.00019325,2]
[426844385,1782941443000,-764.029805,0.00019325,2]
[426844441,1782941444000,-419.04784237,0.00022,2]
[426844451,1782941444000,-500.0,0.00022003,2]
[426844448,1782941444000,-500.0,0.00022003,2]
[426844447,1782941444000,-500.0,0.00022003,2]
[426844449,1782941444000,-500.0,0.00022003,2]
[426844443,1782941444000,-500.0,0.00022003,2]
[426844445,1782941444000,-535.7374899,0.00022003,2]
[426844444,1782941444000,-580.04,0.00022003,2]
[426844450,1782941444000,-500.0,0.00022003,2]
[426844442,1782941444000,-280.0,0.00022,2]
[426844446,1782941444000,-500.0,0.00022003,2]
[426844453,1782941444000,-500.0,0.00022003,2]
[426844465,1782941444000,-151.0,0.00022279,2]
[426844454,1782941444000,-500.0,0.00022003,2]
[426844456,1782941444000,-216.66345934,0.00022022,2]
[426844455,1782941444000,-500.0,0.00022003,2]
[426844457,1782941444000,-2593.69292145,0.00022047,2]
[426844460,1782941444000,-703.18125821,0.000222,2]
[426844459,1782941444000,-2122.0167467,0.000222,2]
[426844462,1782941444000,-419.04784237,0.000222,2]
[426844464,1782941444000,-187.55,0.00022236,2]
[426844466,1782941444000,-160.0,0.0002228,2]
[426844467,1782941444000,-214.76158335,0.00022295,2]
[426844439,1782941444000,-703.18125821,0.00022,2]
[426844471,1782941444000,-1096.78112399,0.00022379,7]
[426844452,1782941444000,-500.0,0.00022003,2]
[426844440,1782941444000,-192.08612594,0.00022,2]
[426844416,1782941444000,-157.48383412,0.00020879,7]
[426844438,1782941444000,-2122.0167467,0.00022,2]
[426844468,1782941444000,-166.96,0.00022316,2]
[426844412,1782941444000,-190.98242431,0.0002,2]
[426844411,1782941444000,-190.98242431,0.0002,2]
[426844414,1782941444000,-500.0,0.00020329,2]
[426844413,1782941444000,-8836.19198963,0.00020132,2]
[426844418,1782941444000,-8836.19198963,0.00021027,2]
[426844420,1782941444000,-659.3114282,0.00021188,2]
[426844419,1782941444000,-192.87,0.00021121,2]
[426844417,1782941444000,-2593.69292145,0.00020997,2]
[426844421,1782941444000,-2122.0167467,0.000213,2]
[426844422,1782941444000,-703.18125821,0.000213,2]
[426844423,1782941444000,-192.08612594,0.000213,2]
[426844425,1782941444000,-419.04784237,0.000213,2]
[426844428,1782941444000,-2122.0167467,0.000215,2]
[426844424,1782941444000,-197.19051787,0.000213,2]
[426844426,1782941444000,-250.0,0.00021363,2]
[426844427,1782941444000,-820.73,0.00021373,2]
[426844430,1782941444000,-192.08612594,0.000215,2]
[426844429,1782941444000,-703.18125821,0.000215,2]
[426844432,1782941444000,-2122.0167467,0.000218,2]
[426844433,1782941444000,-703.18125821,0.000218,2]
[426844434,1782941444000,-192.08612594,0.000218,2]
[426844431,1782941444000,-419.04784237,0.000215,2]
[426844436,1782941444000,-5000.0,0.00021918,2]
[426844435,1782941444000,-419.04784237,0.000218,2]
[426844437,1782941444000,-8836.19198963,0.00021923,2]
[426844469,1782941444000,-415.60232987,0.00022379,7]
[426844505,1782941444000,-500.0,0.00023513,2]
[426844472,1782941444000,-1483.9803,0.00022379,7]
[426844502,1782941444000,-500.0,0.00023513,2]
[426844504,1782941444000,-500.0,0.00023513,2]
[426844503,1782941444000,-500.0,0.00023513,2]
[426844508,1782941444000,-500.0,0.00023513,2]
[426844506,1782941444000,-500.0,0.00023513,2]
[426844507,1782941444000,-500.0,0.00023513,2]
[426844509,1782941444000,-500.0,0.00023513,2]
[426844511,1782941444000,-500.0,0.00023513,2]
[426844512,1782941444000,-500.0,0.00023513,2]
[426844515,1782941444000,-500.0,0.00023513,2]
[426844513,1782941444000,-500.0,0.00023513,2]
[426844510,1782941444000,-500.0,0.00023513,2]
[426844516,1782941444000,-500.0,0.00023513,2]
[426844514,1782941444000,-500.0,0.00023513,2]
[426844517,1782941444000,-500.0,0.00023513,2]
[426844518,1782941444000,-500.0,0.00023513,2]
[426844520,1782941444000,-500.0,0.00023513,2]
[426844519,1782941444000,-500.0,0.00023513,2]
[426844521,1782941444000,-500.0,0.00023513,2]
[426844522,1782941444000,-500.0,0.00023513,2]
[426844524,1782941444000,-500.0,0.00023513,2]
[426844523,1782941444000,-500.0,0.00023513,2]
[426844470,1782941444000,-733.1717728,0.00022379,7]
[426844525,1782941444000,-603.0,0.00023513,2]
[426844527,1782941444000,-500.0,0.00023513,2]
[426844501,1782941444000,-500.0,0.00023513,2]
[426844499,1782941444000,-170.99207153,0.00023412,2]
[426844526,1782941444000,-500.0,0.00023513,2]
[426844498,1782941444000,-163.61888986,0.00023412,2]
[426844473,1782941444000,-2122.0167467,0.000224,2]
[426844500,1782941444000,-1174.0,0.00023483,2]
[426844475,1782941444000,-1130.2,0.00022466,2]
[426844474,1782941444000,-714.08,0.00022466,2]
[426844477,1782941444000,-2122.0167467,0.000226,2]
[426844479,1782941444000,-1174.0,0.00022798,2]
[426844478,1782941444000,-907.0,0.00022783,2]
[426844481,1782941444000,-2122.0167467,0.000229,2]
[426844480,1782941444000,-8836.19198963,0.00022819,2]
[426844482,1782941444000,-916.0,0.00022902,2]
[426844484,1782941444000,-906.0,0.00023082,2]
[426844483,1782941444000,-935.0,0.00022922,2]
[426844485,1782941444000,-2593.69292145,0.00023097,2]
[426844476,1782941444000,-374.0,0.00022499,2]
[426844487,1782941444000,-310.0,0.000231,2]
[426844489,1782941444000,-2122.0167467,0.000233,2]
[426844492,1782941444000,-248.44448,0.00023412,2]
[426844493,1782941444000,-173.75364659,0.00023412,2]
[426844488,1782941444000,-659.3114282,0.0002314,2]
[426844490,1782941444000,-329.322068,0.00023321,2]
[426844491,1782941444000,-168.35448038,0.00023412,2]
[426844495,1782941444000,-227.26602446,0.00023412,2]
[426844494,1782941444000,-197.79698507,0.00023412,2]
[426844496,1782941444000,-233.62709295,0.00023412,2]
[426844486,1782941444000,-2122.0167467,0.000231,2]
[426844497,1782941444000,-183.58383495,0.00023412,2]
[426844561,1782941445000,-8836.19198963,0.00023714,2]
[426844564,1782941445000,-2995.4152665,0.00023743,2]